bitfinex/quotes_SOLUSD_20250717
["timestamp","ask_amount","ask_price","bid_price","bid_amount"]
[1752773304026,0.06,172.93,172.92,9.36633232]
[1752773304419,30.42,172.93,172.92,9.36633232]
[1752773304737,30.42,172.93,172.92,15.14935337]
[1752773305232,30.42,172.93,172.92,15.85935337]
[1752773305432,30.42,172.93,172.92,10.07633232]
[1752773305627,30.42,172.93,172.92,15.85935337]
[1752773306129,30.42,172.93,172.92,9.36633232]
[1752773307336,30.42,172.93,172.92,15.85935337]
[1752773307521,0.06,172.93,172.92,15.85935337]
[1752773308627,0.06,172.93,172.92,6.49302105]
[1752773308823,0.06,172.93,172.92,9.36633232]
[1752773309028,0.06,172.93,172.92,15.14935337]
[1752773309424,0.06,172.93,172.92,15.85935337]
[1752773311216,0.06,172.93,172.92,25.22568569]
[1752773311454,0.06,172.93,172.92,6.49302105]
[1752773311757,30.36,172.93,172.92,9.36633232]
[1752773312339,30.36,172.93,172.9,5.7834506]
[1752773312526,31.05,172.93,172.91,9.36633232]
[1752773312714,30.36,172.93,172.91,9.36633232]
[1752773313531,30.36,172.93,172.91,15.14967492]
[1752773313740,30.36,172.93,172.92,9.36633232]
[1752773314048,30.36,172.93,172.92,10.07633232]
[1752773314436,30.36,172.93,172.92,9.36633232]
[1752773315641,30.36,172.93,172.89,31.78391736]
[1752773315946,31.05,172.93,172.9,9.36633232]
[1752773316120,30.36,172.93,172.91,9.36633232]
[1752773316521,31.05,172.93,172.91,9.36633232]
[1752773317227,31.05,172.93,172.89,5.78391736]
[1752773317458,30.36,172.93,172.91,9.36633232]
[1752773317753,30.36,172.93,172.92,10.07633232]
[1752773317951,30.36,172.93,172.92,9.36633232]
[1752773318949,0.06,172.93,172.92,10.07633232]
[1752773319130,30.46,172.93,172.92,15.85935337]
[1752773319925,0.06,172.93,172.92,15.85935337]
[1752773320359,0.06,172.93,172.92,25.22568569]
[1752773322533,0.06,172.94,172.92,32.93808569]
[1752773322735,0.06,172.94,172.93,10.65460098]
[1752773322937,0.06,172.94,172.93,36.65460098]
[1752773323750,0.06,172.94,172.93,16.43728761]
[1752773327453,1e-08,172.94,172.93,16.43728761]
[1752773328334,0.06,172.97,172.96,15.14801594]
[1752773328534,0.06,172.99,172.98,26.0]
[1752773328864,0.06,172.99,172.98,35.94443383]
[1752773329066,0.06,172.99,172.98,36.65443383]
[1752773330334,0.06,172.99,172.98,50.72374897]
[1752773330573,0.06,173.0,172.98,50.72374897]
[1752773330779,0.06,173.02,173.01,26.0]
[1752773331068,0.1,173.03,173.01,45.31066591]
[1752773331263,0.1,173.03,173.02,0.71]
[1752773331471,0.1,173.03,173.02,10.07633232]
[1752773332545,0.1,173.03,173.02,25.22234328]
[1752773333457,0.1,173.03,173.02,15.85601096]
[1752773334032,0.1,173.03,173.02,5.77967864]
[1752773334238,0.1,173.03,173.02,15.14601096]
[1752773334646,0.1,173.03,173.01,31.77990496]
[1752773335152,0.1,173.03,173.02,9.36633232]
[1752773336155,0.79,173.03,173.02,9.36633232]
[1752773336371,0.79,173.03,173.01,9.36633232]
[1752773336574,0.69,173.02,173.01,9.36633232]
[1752773337080,0.69,173.02,173.0,9.36633232]
[1752773337277,0.69,173.01,173.0,9.36633232]
[1752773337480,0.77,173.03,173.0,9.36633232]
[1752773337789,0.67,173.02,173.0,9.36633232]
[1752773339064,0.67,173.01,173.0,9.36633232]
[1752773339287,0.67,173.01,172.99,9.36633232]
[1752773339496,0.67,173.01,172.96,0.71]
[1752773339497,0.67,173.0,172.98,9.36633232]
[1752773339667,30.91,172.99,172.96,9.36633232]
[1752773339859,0.5785363,172.98,172.96,9.36633232]
[1752773340062,0.67,172.98,172.95,9.36633232]
[1752773340256,0.67,172.98,172.96,9.36633232]
[1752773340462,30.24,172.99,172.97,9.36633232]
[1752773340661,30.24,172.99,172.95,0.67]
[1752773340863,30.91,172.99,172.97,9.36633232]
[1752773341081,30.24,172.99,172.97,9.36633232]
[1752773341270,0.67,172.98,172.93,0.03]
[1752773341485,16.78468397,172.97,172.93,0.03]
[1752773341795,16.78468397,172.97,172.93,9.39633232]
[1752773341796,0.67,172.96,172.93,9.39633232]
[1752773341998,0.5785363,172.98,172.95,9.36633232]
[1752773342303,30.4,173.01,172.97,9.36633232]
[1752773342602,30.4,173.01,173.0,9.36633232]
[1752773345215,30.4,173.01,173.0,9.36633232]
[1752773345785,30.4,173.01,173.0,15.14667914]
[1752773346018,30.4,173.01,173.0,15.81667914]
[1752773346315,0.1,173.03,173.0,15.81667914]
[1752773346518,0.1,173.03,173.02,9.36633232]
[1752773347022,0.1,173.03,173.02,10.03633232]
[1752773348092,0.1,173.03,173.02,15.81601096]
[1752773348588,0.1,173.03,173.02,15.14601096]
[1752773350018,0.1,173.03,173.02,15.81601096]
[1752773350718,0.1,173.03,173.02,9.36633232]
[1752773351112,0.1,173.03,173.02,6.37294513]
[1752773351311,0.77,173.03,172.99,6.35859322]
[1752773351523,0.77,173.03,172.99,5.78052513]
[1752773351717,0.1,173.03,173.02,6.37294513]
[1752773352904,0.1,173.03,172.98,26.0]
[1752773352905,6.54934638,173.03,172.98,26.0]
[1752773353109,1.2485363,173.02,172.99,6.37294513]
[1752773353305,0.67,173.02,173.0,6.37294513]
[1752773353547,17.46322027,173.03,173.0,6.37294513]
[1752773353746,18.13322027,173.03,173.0,6.37294513]
[1752773353953,0.67,173.02,173.0,6.37294513]
[1752773354248,17.46322027,173.03,173.0,6.37294513]
[1752773354531,18.13322027,173.03,173.0,6.37294513]
[1752773355240,0.67,173.02,173.0,6.37294513]
[1752773355418,17.46322027,173.03,173.0,6.37294513]
[1752773356033,17.55468397,173.03,173.01,6.37294513]
[1752773356432,16.88468397,173.03,173.01,6.37294513]
[1752773357624,17.55468397,173.03,173.01,6.37294513]
[1752773357830,0.1,173.03,173.01,12.15293231]
[1752773358036,0.1,173.03,173.02,6.37294513]
[1752773359032,30.46,173.03,173.02,6.37294513]
[1752773359831,30.46,173.03,173.0,5.81026107]
[1752773360014,31.13,173.03,173.01,6.37294513]
[1752773360214,30.46,173.03,173.01,6.37294513]
[1752773360733,30.34,173.02,173.01,6.37294513]
[1752773361245,0.1,173.03,173.01,6.37294513]
[1752773361246,0.1,173.03,173.01,7.04294513]
[1752773361435,0.1,173.03,173.02,6.37294513]
[1752773361634,30.42,173.03,173.02,6.37294513]
[1752773363530,0.1,173.03,173.02,6.37294513]
[1752773363727,30.42,173.03,173.02,12.82262377]
[1752773364048,0.1,173.03,173.02,12.82262377]
[1752773368819,0.1,173.03,173.02,6.44967864]
[1752773369019,0.1,173.03,173.02,5.77967864]
[1752773369252,0.1,173.03,173.02,12.15262377]
[1752773369447,0.1,173.03,173.02,6.37294513]
[1752773369650,0.1,173.03,173.01,6.37294513]
[1752773370337,0.1,173.03,173.01,12.15278736]
[1752773370535,0.1,173.03,173.02,6.37294513]
[1752773374541,0.1,173.03,173.0,0.03]
[1752773374747,0.79,173.03,173.01,6.37294513]
[1752773375239,0.1,173.03,173.02,6.37294513]
[1752773377949,0.1,173.03,173.02,12.15262377]
[1752773378153,0.1,173.03,173.02,12.81262377]
[1752773381934,0.1,173.03,173.02,13.39059163]
[1752773385152,0.1,173.03,173.02,12.81262377]
[1752773385352,0.1,173.03,173.01,5.80991568]
[1752773385575,0.79,173.03,173.01,0.03]
[1752773385737,18.05322027,173.02,173.01,0.03]
[1752773388261,30.20584404,173.02,173.01,0.03]
[1752773388642,56.20584404,173.02,173.01,0.03]
[1752773388847,42.78468397,173.01,173.0,0.03]
[1752773389051,49.8476291,173.01,173.0,0.03]
[1752773389648,55.62764181,173.01,173.0,0.03]
[1752773389859,85.78764181,173.01,173.0,0.03]
[1752773392402,85.76764181,173.01,173.0,0.03]
[1752773392563,234.06764181,173.01,173.0,0.03]
[1752773392974,203.92764181,173.01,173.0,0.03]
[1752773393271,234.04764181,173.01,173.0,0.03]
[1752773397880,203.92764181,173.01,173.0,0.03]
[1752773398076,234.02764181,173.01,173.0,0.03]
[1752773398388,203.92764181,173.01,173.0,0.03]
[1752773398587,234.00764181,173.01,173.0,0.03]
[1752773398768,226.94469668,173.01,173.0,0.03]
[1752773399091,233.97764181,173.01,173.0,0.03]
[1752773400490,233.31764181,173.01,173.0,0.03]
[1752773400894,16.78468397,173.01,173.0,0.03]
[1752773401097,16.78468397,173.02,173.0,0.03]
[1752773401287,30.06,173.01,173.0,0.69]
[1752773401594,30.06,173.01,173.0,6.40294513]
[1752773401773,30.06,173.02,173.0,6.40294513]
[1752773401977,30.06,173.02,173.01,6.37294513]
[1752773402175,30.06,173.02,173.01,7.03294513]
[1752773402572,30.06,173.02,173.0,6.40294513]
[1752773402886,0.5785363,173.01,173.0,0.03]
[1752773403068,30.6385363,173.02,173.0,0.03]
[1752773403269,30.6385363,173.02,173.0,0.69]
[1752773403463,30.06,173.02,173.0,6.40294513]
[1752773403663,0.1,173.03,173.01,7.03294513]
[1752773403862,30.06,173.02,173.01,7.03294513]
[1752773404592,30.06,173.02,173.01,6.37294513]
[1752773405070,30.06,173.02,173.0,0.03]
[1752773405393,30.06,173.02,173.0,6.40294513]
[1752773405570,30.06,173.02,173.01,6.37294513]
[1752773406099,30.06,173.02,173.01,7.03294513]
[1752773406868,0.1,173.03,173.01,12.81295784]
[1752773407199,30.18,173.02,173.01,5.78001271]
[1752773407361,0.1,173.03,173.01,5.78001271]
[1752773407566,30.28,173.03,173.01,5.78001271]
[1752773407779,30.28,173.03,173.02,0.66]
[1752773408192,0.1,173.03,173.02,0.66]
[1752773408375,0.1,173.03,173.02,7.03294513]
[1752773410292,0.1,173.03,173.02,0.66]
[1752773410599,0.1,173.03,173.02,6.37294513]
[1752773411298,0.1,173.03,173.02,7.03294513]
[1752773411871,0.1,173.03,173.02,12.81262377]
[1752773412397,0.1,173.03,173.02,6.37294513]
[1752773413068,30.24,173.03,173.02,6.37294513]
[1752773413470,30.24,173.03,173.0,6.47025028]
[1752773413471,30.24,173.03,173.01,6.37294513]
[1752773413665,36.01936406,173.03,173.0,0.03]
[1752773413901,7.01823946,173.02,173.0,0.03]
[1752773414706,0.5785363,173.02,173.0,0.03]
[1752773415269,0.5785363,173.02,173.0,6.40294513]
[1752773415476,0.1,173.03,173.01,7.03294513]
[1752773415703,30.16,173.02,173.01,0.66]
[1752773416067,30.16,173.02,173.01,6.44001271]
[1752773416398,30.16,173.02,173.01,0.66]
[1752773416577,30.26,173.03,173.01,0.66]
[1752773416779,30.26,173.03,173.02,6.37294513]
[1752773417303,30.26,173.03,173.02,7.03294513]
[1752773417802,0.1,173.03,173.02,7.03294513]
[1752773417979,30.24,173.03,173.02,7.03294513]
[1752773419695,30.24,173.03,173.02,12.81262377]
[1752773419880,0.1,173.03,173.02,12.81262377]
[1752773421105,0.1,173.03,173.02,0.66]
[1752773421282,0.1,173.03,173.0,6.47027605]
[1752773421484,0.1,173.03,173.02,6.37294513]
[1752773422193,0.1,173.03,173.02,7.03294513]
[1752773423912,0.1,173.03,173.02,12.81262377]
[1752773424797,0.1,173.03,173.02,7.03294513]
[1752773425107,0.1,173.03,173.02,0.66]
[1752773425314,0.1,173.03,173.02,7.03294513]
[1752773425505,0.1,173.03,173.02,6.37294513]
[1752773425697,0.1,173.03,173.01,6.37294513]
[1752773425898,0.6785363,173.03,173.01,6.37294513]
[1752773427111,0.1,173.03,173.01,6.37294513]
[1752773427311,0.1,173.03,173.02,7.08294513]
[1752773430289,0.1,173.03,173.02,6.37294513]
[1752773432424,0.1,173.03,173.02,7.08294513]
[1752773433920,0.1,173.03,173.02,12.86262377]
[1752773434129,0.1,173.03,173.02,0.71]
[1752773434618,0.1,173.03,173.02,7.08294513]
[1752773435300,0.1,173.03,173.01,6.37294513]
[1752773436322,0.1,173.03,173.02,7.08294513]
[1752773437096,0.1,173.03,173.02,0.71]
[1752773437399,0.1,173.03,173.02,6.37294513]
[1752773438226,0.1,173.03,173.0,0.74]
[1752773438415,0.1,173.03,173.01,6.37294513]
[1752773438925,0.1,173.03,173.01,7.08294513]
[1752773439329,0.1,173.03,173.02,7.08294513]
[1752773439817,0.1,173.03,173.02,6.37294513]
[1752773440825,0.1,173.03,173.02,7.08294513]
[1752773441034,0.1,173.03,173.02,0.71]
[1752773441341,0.1,173.03,173.02,7.08294513]
[1752773442036,0.1,173.03,173.02,12.86262377]
[1752773443807,0.1,173.03,173.02,20.52962377]
[1752773444904,0.1,173.03,173.02,21.10759163]
[1752773445404,0.06,173.04,173.02,21.10759163]
[1752773445405,0.06,173.04,173.03,26.0]
[1752773445606,0.1,173.05,173.03,63.14294513]
[1752773445897,0.06,173.08,173.03,63.14294513]
[1752773445898,0.06,173.08,173.04,7.66084619]
[1752773446214,0.06,173.12,173.08,7.8741]
[1752773446409,0.06,173.12,173.1,12.74589026]
[1752773446828,0.06,173.12,173.1,13.45589026]
[1752773447035,0.06,173.12,173.1,19.23289777]
[1752773447916,0.06,173.12,173.1,12.85995264]
[1752773449123,0.06,173.12,173.1,6.48700751]
[1752773449308,0.06,173.12,173.1,12.85995264]
[1752773449509,0.06,173.12,173.1,6.37294513]
[1752773449937,0.06,173.12,173.09,6.37294513]
[1752773450137,0.67,173.1,173.06,0.71]
[1752773450339,0.67,173.1,173.07,6.37294513]
[1752773451126,0.6785363,173.11,173.07,6.37294513]
[1752773451510,0.6785363,173.11,173.07,7.08294513]
[1752773451828,0.67,173.1,173.05,0.71]
[1752773452030,1.2485363,173.09,173.05,6.37294513]
[1752773452337,0.5785363,173.09,173.05,6.37294513]
[1752773452547,0.67,173.08,173.05,6.37294513]
[1752773452719,0.5785363,173.09,173.06,6.37294513]
[1752773452927,17.36322027,173.1,173.06,6.37294513]
[1752773453126,23.81022842,173.1,173.06,6.37294513]
[1752773453942,18.03322027,173.1,173.06,7.08294513]
[1752773454113,17.36322027,173.1,173.06,7.08294513]
[1752773454849,23.14026697,173.1,173.06,7.08294513]
[1752773455525,0.67,173.09,173.05,6.37294513]
[1752773455712,24.4061654,173.08,173.02,0.71]
[1752773455914,16.78468397,173.06,173.01,0.03]
[1752773456156,36.99148143,173.05,173.01,0.03]
[1752773456650,0.67,173.04,173.01,0.03]
[1752773456856,7.04294513,173.04,173.01,0.03]
[1752773457508,0.67,173.04,173.01,0.03]
[1752773457714,30.6185363,173.05,173.01,6.40294513]
[1752773458144,37.05725334,173.05,173.01,6.40294513]
[1752773458636,37.05725334,173.05,173.01,7.09294513]
[1752773458850,17.36322027,173.06,173.02,7.06294513]
[1752773459033,30.06,173.05,173.02,7.06294513]
[1752773460247,30.06,173.05,173.02,6.37294513]
[1752773460823,30.06,173.05,173.03,6.37294513]
[1752773461330,30.72,173.05,173.02,6.37294513]
[1752773461647,1.2385363,173.04,173.02,6.37294513]
[1752773461815,1.2385363,173.04,173.01,6.40294513]
[1752773462016,1.2385363,173.04,173.02,6.37294513]
[1752773462716,0.5785363,173.04,173.02,6.37294513]
[1752773463015,30.06,173.05,173.03,7.06294513]
[1752773463232,30.06,173.05,173.03,0.69]
[1752773463416,30.47,173.05,173.02,6.37294513]
[1752773463745,0.9885363,173.04,173.01,0.03]
[1752773463948,0.9885363,173.04,173.02,6.37294513]
[1752773464548,6.76760848,173.04,173.01,6.40294513]
[1752773464927,0.41,173.03,173.01,6.40294513]
[1752773465322,6.35760848,173.04,173.01,6.40294513]
[1752773465521,0.5785363,173.04,173.01,6.40294513]
[1752773465745,0.5785363,173.04,173.02,6.37294513]
[1752773466129,0.5785363,173.08,173.03,7.06294513]
[1752773466448,30.06,173.07,173.05,6.37294513]
[1752773466849,0.9885363,173.06,173.04,6.37294513]
[1752773467028,0.9885363,173.06,173.03,6.37294513]
[1752773467234,0.41,173.05,173.03,6.37294513]
[1752773467458,17.36322027,173.06,173.03,6.37294513]
[1752773467960,0.5785363,173.06,173.04,6.37294513]
[1752773468260,30.6385363,173.07,173.05,6.37294513]
[1752773469255,0.66,173.06,173.04,6.37294513]
[1752773470331,36.41654914,173.07,173.04,6.37294513]
[1752773470655,30.06,173.07,173.05,7.06294513]
[1752773470847,30.06,173.07,173.06,6.37294513]
[1752773472848,16.78468397,173.06,173.02,8.1844]
[1752773473050,16.78468397,173.04,173.01,0.03]
[1752773473241,30.6385363,173.03,173.01,0.03]
[1752773473757,31.2985363,173.03,173.01,0.03]
[1752773473939,30.6385363,173.03,173.01,6.40294513]
[1752773475354,30.06,173.03,173.01,6.40294513]
[1752773475744,30.06,173.03,173.02,6.37294513]
[1752773476147,0.5785363,173.06,173.02,12.84262377]
[1752773476456,30.06,173.05,173.02,0.69]
[1752773476634,30.06,173.05,173.04,6.37294513]
[1752773478042,0.66,173.08,173.04,7.06294513]
[1752773478043,16.78468397,173.08,173.04,7.06294513]
[1752773478361,30.6385363,173.07,173.05,7.06294513]
[1752773478531,30.6385363,173.07,173.05,6.37294513]
[1752773479558,30.6385363,173.07,173.03,0.69]
[1752773479754,31.2985363,173.07,173.04,6.37294513]
[1752773479959,0.66,173.06,173.04,6.37294513]
[1752773480151,30.04,173.05,173.01,0.72]
[1752773480349,30.04,173.05,173.01,6.40294513]
[1752773480350,1.2385363,173.04,173.01,6.40294513]
[1752773480661,30.04,173.03,173.01,6.40294513]
[1752773480970,30.04,173.03,173.02,6.37294513]
[1752773481349,30.04,173.03,173.02,12.84262377]
[1752773481966,30.04,173.05,173.02,12.84262377]
[1752773482164,30.04,173.05,173.04,6.37294513]
[1752773483858,30.04,173.05,173.04,7.06294513]
[1752773484234,17.36322027,173.07,173.04,6.37294513]
[1752773484967,0.5785363,173.07,173.04,6.37294513]
[1752773485347,30.04,173.06,173.04,6.37294513]
[1752773485952,0.5785363,173.05,173.03,6.37294513]
[1752773486268,30.04,173.04,173.02,6.37294513]
[1752773486471,30.7,173.04,173.02,6.37294513]
[1752773486639,1.2385363,173.03,173.01,0.03]
[1752773486845,30.04,173.02,173.01,0.03]
[1752773487554,30.04,173.02,173.01,6.40294513]
[1752773488244,30.04,173.02,173.01,7.10294513]
[1752773488759,30.04,173.02,173.01,6.40294513]
[1752773488960,79.28436261,173.02,173.01,0.03]
[1752773489146,16.78468397,172.98,172.94,0.03]
[1752773489340,23.1576291,172.96,172.94,0.03]
[1752773489551,0.5785363,172.97,172.94,6.40294513]
[1752773489857,53.28636759,172.96,172.94,0.03]
[1752773490048,53.86490389,172.96,172.94,0.03]
[1752773490242,60.23784902,172.96,172.94,0.03]
[1752773490650,16.78468397,172.93,172.84,9.1707]
[1752773490853,16.78468397,172.89,172.85,6.40294513]
[1752773491051,30.6185363,172.88,172.85,6.40294513]
[1752773491844,30.6185363,172.88,172.86,6.40294513]
[1752773492051,30.6185363,172.88,172.87,6.37294513]
[1752773492052,30.04,172.88,172.87,6.37294513]
[1752773492742,0.5785363,172.91,172.87,6.37294513]
[1752773492966,30.04,172.9,172.87,7.07294513]
[1752773493356,0.5785363,172.89,172.87,7.07294513]
[1752773493561,30.04,172.88,172.87,6.37294513]
[1752773493745,0.5785363,172.91,172.87,6.37294513]
[1752773493946,30.06,172.9,172.88,6.37294513]
[1752773494150,0.68,172.95,172.89,7.07294513]
[1752773494371,30.6385363,172.94,172.93,6.37294513]
[1752773495169,0.5785363,172.95,172.93,6.37294513]
[1752773495370,30.06,172.94,172.93,6.37294513]
[1752773495572,30.06,172.94,172.93,7.07294513]
[1752773496162,16.78468397,172.96,172.93,7.07294513]
[1752773496361,30.6185363,172.95,172.91,6.48310045]
[1752773496568,30.04,172.94,172.93,6.37294513]
[1752773496774,30.04,172.94,172.91,6.48310045]
[1752773496953,30.04,172.94,172.93,6.37294513]
[1752773500665,30.06,172.94,172.93,6.37294513]
[1752773501069,1.2585363,172.97,172.93,6.37294513]
[1752773501272,46.84468397,172.96,172.93,6.37294513]
[1752773501483,0.5785363,172.95,172.93,6.37294513]
[1752773501658,30.06,172.94,172.93,6.37294513]
[1752773502285,17.36322027,172.96,172.93,12.85563176]
[1752773502492,0.5785363,172.98,172.95,6.37294513]
[1752773502688,0.5785363,172.99,172.97,6.37294513]
[1752773502989,0.5785363,172.99,172.93,5.78268663]
[1752773502990,30.06,172.98,172.96,0.7]
[1752773503783,30.06,172.98,172.93,5.78268663]
[1752773503968,30.06,172.98,172.97,6.37294513]
[1752773504881,30.06,172.98,172.94,0.7]
[1752773505080,0.5785363,172.97,172.96,6.37294513]
[1752773505284,30.6385363,172.98,172.96,6.37294513]
[1752773505985,30.6385363,172.98,172.97,6.37294513]
[1752773506165,30.06,172.98,172.95,5.78198988]
[1752773506369,30.06,172.98,172.96,6.37294513]
[1752773506569,0.5785363,172.97,172.96,6.37294513]
[1752773506789,1.2585363,172.97,172.95,6.37294513]
[1752773506959,17.36322027,172.97,172.95,6.37294513]
[1752773507686,18.10322027,172.97,172.94,6.37294513]
[1752773508895,18.10322027,172.97,172.93,0.03]
[1752773509069,18.10322027,172.97,172.94,6.37294513]
[1752773509271,18.10322027,172.97,172.95,6.37294513]
[1752773509491,30.04,172.96,172.95,6.37294513]
[1752773511378,36.50173197,172.96,172.93,6.40294513]
[1752773511584,0.5785363,172.95,172.93,6.40294513]
[1752773511770,30.04,172.94,172.93,0.03]
[1752773511973,30.04,172.94,172.93,6.40294513]
[1752773512971,30.04,172.94,172.93,7.10294513]
[1752773513579,30.04,172.94,172.93,12.88563176]
[1752773514508,17.42322027,172.97,172.93,12.88563176]
[1752773514703,16.84468397,172.97,172.94,0.7]
[1752773514887,30.6185363,172.96,172.94,7.07294513]
[1752773515082,30.04,172.96,172.95,6.37294513]
[1752773516409,0.06,172.97,172.95,7.07294513]
[1752773516616,30.1,172.97,172.96,7.07294513]
[1752773516986,30.1,172.97,172.96,12.85462875]
[1752773517514,0.06,172.97,172.96,7.07294513]
[1752773517880,0.06,172.97,172.96,6.37294513]
[1752773518686,0.06,172.97,172.96,0.66]
[1752773518996,0.06,172.97,172.96,7.03294513]
[1752773520085,0.06,172.97,172.96,0.66]
[1752773520286,30.79,172.97,172.93,0.03]
[1752773520593,30.79,172.97,172.95,6.37294513]
[1752773520792,36.57138919,172.97,172.95,6.37294513]
[1752773521200,36.57138919,172.97,172.93,0.69]
[1752773521399,36.57138919,172.97,172.95,6.37294513]
[1752773521619,0.5785363,172.96,172.93,0.03]
[1752773521783,30.04,172.95,172.93,6.40294513]
[1752773522289,30.73,172.95,172.93,6.40294513]
[1752773522487,30.73,172.95,172.93,0.03]
[1752773522488,1.2685363,172.94,172.93,0.03]
[1752773522688,24.4261654,172.94,172.93,0.03]
[1752773522907,30.20851766,172.94,172.93,0.03]
[1752773523210,23.83557253,172.94,172.93,0.03]
[1752773523407,30.20851766,172.94,172.93,0.03]
[1752773524111,30.20851766,172.94,172.93,1e-08]
[1752773527800,60.24851766,172.94,172.93,1e-08]
[1752773530028,30.20851766,172.94,172.93,1e-08]
[1752773530200,60.24851766,172.94,172.93,1e-08]
[1752773530701,86.24851766,172.94,172.93,1e-08]
[1752773532534,42.78468397,172.9,172.86,0.03]
[1752773532710,23.1576291,172.87,172.86,0.03]
[1752773532909,53.1976291,172.87,172.86,0.03]
[1752773533118,79.8876291,172.87,172.86,1e-08]
[1752773533421,22.56971231,172.86,172.85,1e-08]
[1752773533729,29.63265744,172.86,172.85,1e-08]
[1752773535129,59.67265744,172.86,172.85,1e-08]
[1752773537612,18.31828397,172.85,172.83,0.2]
[1752773537806,53.7761654,172.84,172.83,0.2]
[1752773538034,54.4661654,172.84,172.83,0.2]
[1752773538219,54.4661654,172.84,172.82,0.03]
[1752773538419,23.8476291,172.83,172.82,0.03]
[1752773539135,54.4661654,172.83,172.82,0.03]
[1752773539727,60.25219791,172.83,172.82,0.03]
[1752773540238,16.78468397,172.79,172.78,0.03]
[1752773540444,53.7761654,172.79,172.78,0.03]
[1752773540737,54.4661654,172.79,172.78,0.03]
[1752773541638,60.25353735,172.79,172.78,0.03]
[1752773541932,59.56353735,172.79,172.78,0.03]
[1752773542523,60.25353735,172.79,172.78,0.03]
[1752773544611,63.08576628,172.79,172.78,0.03]
[1752773545140,63.08576628,172.79,172.78,1e-08]
[1752773545438,42.78468397,172.77,172.76,1e-08]
[1752773545613,79.7761654,172.77,172.76,1e-08]
[1752773545937,86.2542073,172.77,172.76,1e-08]
[1752773547332,56.2142073,172.77,172.76,1e-08]
[1752773547531,86.2542073,172.77,172.76,1e-08]
[1752773548034,86.2542073,172.77,172.75,1e-08]
[1752773548035,16.78468397,172.76,172.75,1e-08]
[1752773548233,23.8276291,172.76,172.75,1e-08]
[1752773549238,53.8676291,172.76,172.75,1e-08]
[1752773549936,59.65600603,172.76,172.75,1e-08]
[1752773550925,207.95600603,172.76,172.75,1e-08]
[1752773551941,177.24600603,172.76,172.75,1e-08]
[1752773552246,207.30600603,172.76,172.75,1e-08]
[1752773552546,177.24600603,172.76,172.75,1e-08]
[1752773552842,207.30600603,172.76,172.75,1e-08]
[1752773553046,207.97600603,172.76,172.75,1e-08]
[1752773554654,207.30600603,172.76,172.75,1e-08]
[1752773555336,207.97600603,172.76,172.75,1e-08]
[1752773556155,207.30600603,172.76,172.75,1e-08]
[1752773556458,177.24600603,172.76,172.75,1e-08]
[1752773556661,165.08468397,172.76,172.75,0.67000001]
[1752773556869,46.84468397,172.76,172.75,7.04294514]
[1752773557066,30.06,172.76,172.75,7.04294514]
[1752773558166,30.06,172.76,172.75,12.83165715]
[1752773558457,0.5785363,172.79,172.75,12.83165715]
[1752773558672,30.06,172.78,172.77,6.37294513]
[1752773558962,30.06,172.78,172.77,7.04294513]
[1752773559254,46.84468397,172.78,172.77,7.04294513]
[1752773559438,46.84468397,172.78,172.77,0.67]
[1752773559644,46.84468397,172.78,172.75,1e-08]
[1752773559645,16.78468397,172.77,172.75,7.04294514]
[1752773559831,30.6385363,172.76,172.75,7.04294514]
[1752773560036,47.42322027,172.76,172.75,1e-08]
[1752773560251,53.2115972,172.76,172.75,1e-08]
[1752773560449,59.58454233,172.76,172.75,1e-08]
[1752773561142,60.25454233,172.76,172.75,1e-08]
[1752773562361,53.8815972,172.76,172.75,1e-08]
[1752773562561,60.25454233,172.76,172.75,1e-08]
[1752773563151,59.58454233,172.76,172.75,1e-08]
[1752773563572,60.25454233,172.76,172.75,1e-08]